bitfinex/quotes_SOLUSD_20250222
["timestamp","ask_amount","ask_price","bid_price","bid_amount"]
[1740212162612,5.8159,171.95,171.9,18.31171952]
[1740212163436,12.238,171.96,171.91,18.31171952]
[1740212163736,5.815,171.97,171.92,18.31171952]
[1740212164538,5.815,171.97,171.91,18.31171952]
[1740212165615,24.12671952,171.97,171.9,18.31171952]
[1740212165814,24.12671952,171.97,171.89,18.31171952]
[1740212166312,18.31171952,171.96,171.89,18.31171952]
[1740212166729,24.12671952,171.97,171.89,18.31171952]
[1740212166928,24.12671952,171.97,171.89,24.12921952]
[1740212168739,18.31171952,171.95,171.86,121.58]
[1740212168932,18.31171952,171.93,171.86,99.81171952]
[1740212169135,18.31171952,171.92,171.86,81.5]
[1740212169739,18.31171952,171.9,171.88,0.03]
[1740212169945,18.31171952,171.89,171.88,0.03]
[1740212170821,18.31171952,171.9,171.88,0.03]
[1740212172839,24.12931952,171.89,171.88,0.03]
[1740212173526,25.8176,171.89,171.88,0.03]
[1740212173824,28.62621952,171.92,171.88,0.03]
[1740212174024,34.44281952,171.92,171.88,0.03]
[1740212174527,10.1166,171.92,171.88,0.03]
[1740212176149,4.3,171.92,171.88,0.03]
[1740212176329,10.1166,171.92,171.88,0.03]
[1740212176529,18.31171952,171.91,171.88,0.03]
[1740212176725,10.1166,171.92,171.88,0.03]
[1740212176924,28.42831952,171.92,171.88,0.03]
[1740212178045,5.8173,171.9,171.88,0.03]
[1740212178348,24.12901952,171.9,171.88,0.03]
[1740212178733,5.8173,171.9,171.88,0.03]
[1740212181244,24.12901952,171.9,171.88,0.03]
[1740212182339,5.8173,171.9,171.88,0.03]
[1740212182541,81.2,171.92,171.88,0.03]
[1740212182851,81.263,171.92,171.88,0.03]
[1740212183348,0.063,171.92,171.89,18.31171952]
[1740212184054,0.063,171.92,171.88,99.84171952]
[1740212185233,0.063,171.92,171.88,105.65961952]
[1740212186957,0.063,171.92,171.88,99.84171952]
[1740212187638,0.063,171.92,171.88,105.65961952]
[1740212189372,0.063,171.92,171.91,18.31171952]
[1740212189654,0.063,171.92,171.91,36.96136838]
[1740212189834,0.063,171.92,171.91,118.46136838]
[1740212190434,0.063,171.92,171.91,154.26136838]
[1740212190648,0.063,171.92,171.91,160.90376838]
[1740212191256,0.063,171.92,171.91,166.72066838]
[1740212191446,97.84,171.98,171.97,18.31171952]
[1740212192645,5.8133,172.02,171.97,18.31171952]
[1740212193243,0.063,172.03,171.99,18.31171952]
[1740212193448,0.063,172.03,172.0,18.31171952]
[1740212194944,0.063,172.03,172.01,18.31171952]
[1740212195149,0.063,172.03,172.02,18.31171952]
[1740212196049,0.063,172.03,172.02,36.96136838]
[1740212196467,0.063,172.03,172.02,124.27456838]
[1740212196847,0.063,172.03,172.02,118.46136838]
[1740212206757,0.063,172.03,172.02,124.27456838]
[1740212207389,0.063,172.03,172.02,118.46136838]
[1740212208856,0.063,172.03,172.02,124.27456838]
[1740212209464,0.063,172.03,172.02,160.07456838]
[1740212212183,0.063,172.03,172.02,161.07456838]
[1740212213785,0.063,172.03,172.02,162.07456838]
[1740212214509,0.063,172.03,172.02,160.07456838]
[1740212214714,0.063,172.03,172.02,153.45130892]
[1740212216703,0.063,172.03,172.02,154.45130892]
[1740212218697,0.063,172.1,172.03,19.64964886]
[1740212218999,0.063,172.1,172.09,30.33810892]
[1740212219203,0.063,172.1,172.09,111.83810892]
[1740212219988,0.063,172.1,172.09,100.14964886]
[1740212222180,0.063,172.1,172.09,81.5]
[1740212229501,11.75146006,172.1,172.01,99.00176006]
[1740212229701,11.68846006,172.09,172.01,99.00176006]
[1740212229907,11.68846006,172.09,172.02,18.64964886]
[1740212230301,5.8112,172.08,172.02,18.64964886]
[1740212230825,11.68846006,172.07,172.02,100.14964886]
[1740212231103,11.68846006,172.06,171.99,81.5]
[1740212231312,11.68846006,172.04,171.99,81.5]
[1740212232285,5.8129,172.03,171.99,81.5]
[1740212232793,24.09647012,172.04,171.99,81.5]
[1740212233003,5.8126,172.04,171.99,81.5]
[1740212233498,18.28387012,172.06,171.99,105.59807012]
[1740212233699,24.09537012,172.07,172.0,18.28387012]
[1740212234614,5.8115,172.07,172.01,18.28387012]
[1740212234815,24.09537012,172.07,172.0,24.09757012]
[1740212235201,24.09537012,172.07,172.0,18.28387012]
[1740212235402,18.28387012,172.05,171.99,81.5]
[1740212235720,18.28387012,172.04,171.99,81.5]
[1740212236390,18.28387012,172.03,171.99,81.5]
[1740212236593,18.28387012,172.02,171.97,100.14964886]
[1740212237219,18.28387012,172.01,171.97,81.5]
[1740212237399,18.28387012,171.99,171.97,81.5]
[1740212237602,18.28387012,171.99,171.92,105.63037012]
[1740212238490,5.8142,171.99,171.93,42.74971898]
[1740212239116,1.5976,172.01,171.95,18.28387012]
[1740212239325,7.4112,172.01,171.95,18.28387012]
[1740212240007,1.5976,172.01,171.95,18.28387012]
[1740212240212,4.26,172.04,171.98,18.28387012]
[1740212240420,10.0726,172.04,171.98,18.28387012]
[1740212240718,10.0726,172.04,171.98,24.09827012]
[1740212241516,1.6397,172.05,172.0,18.28387012]
[1740212241730,81.2,172.07,172.02,18.28387012]
[1740212241920,5.8112,172.08,172.02,18.28387012]
[1740212242219,7.4507,172.09,172.03,18.28387012]
[1740212242612,1.6397,172.09,172.05,18.28387012]
[1740212243214,25.73447012,172.09,172.03,81.5]
[1740212243717,0.063,172.04,172.03,99.78387012]
[1740212243923,0.063,172.04,172.03,118.43351898]
[1740212244299,0.063,172.04,172.03,154.23351898]
[1740212244709,0.063,172.1,172.04,18.64964886]
[1740212244993,0.063,172.1,172.07,36.93351898]
[1740212245203,0.063,172.1,172.08,18.64964886]
[1740212245815,5.8735,172.1,172.07,81.5]
[1740212246002,24.15737012,172.1,172.07,81.5]
[1740212246200,5.8735,172.1,172.07,81.5]
[1740212247220,18.34687012,172.1,172.07,81.5]
[1740212247825,0.063,172.1,172.07,81.5]
[1740212248215,0.063,172.1,172.04,81.5]
[1740212248824,18.34687012,172.1,172.04,81.5]
[1740212249322,24.09477012,172.09,172.04,81.5]
[1740212250198,18.28387012,172.08,172.04,81.5]
[1740212250403,18.28387012,172.07,172.04,81.5]
[1740212251121,18.28387012,172.07,172.01,18.64964886]
[1740212251322,5.8119,172.06,172.0,99.78387012]
[1740212251624,24.09577012,172.06,172.0,81.5]
[1740212252819,19.80147012,172.05,172.0,81.5]
[1740212253220,5.8126,172.04,172.0,81.5]
[1740212256125,5.8126,172.04,172.0,81.53]
[1740212257730,1.5176,172.05,172.0,99.81387012]
[1740212258024,18.34687012,172.07,172.0,99.81387012]
[1740212258025,0.063,172.07,172.03,18.28387012]
[1740212258229,5.8746,172.07,172.02,18.28387012]
[1740212258616,0.063,172.07,172.02,18.28387012]
[1740212258817,0.063,172.07,172.03,18.28387012]
[1740212260631,0.063,172.07,172.05,18.28387012]
[1740212262028,0.063,172.07,172.06,18.28387012]
[1740212262224,0.063,172.07,172.06,124.24541898]
[1740212263811,0.063,172.07,172.06,142.5292891]
[1740212264128,0.063,172.07,172.06,124.24541898]
[1740212264935,0.0001,172.07,172.06,124.24541898]
[1740212265434,0.063,172.13,172.07,18.64964886]
[1740212265614,0.063,172.13,172.12,42.74341898]
[1740212265932,0.063,172.13,172.12,124.24341898]
[1740212267234,0.063,172.21,172.13,18.64964886]
[1740212267447,0.063,172.21,172.19,18.28387012]
[1740212267928,0.063,172.21,172.18,18.28387012]
[1740212270317,0.063,172.21,172.17,18.28387012]
[1740212270538,0.063,172.21,172.17,24.09197012]
[1740212271941,0.063,172.21,172.17,105.59197012]
[1740212273754,0.063,172.21,172.17,99.78387012]
[1740212273947,0.063,172.21,172.17,81.5]
[1740212274560,0.063,172.21,172.17,105.59197012]
[1740212275073,0.063,172.21,172.17,87.3081]
[1740212278527,0.063,172.21,172.19,18.64964886]
[1740212279545,0.063,172.21,172.19,36.93351898]
[1740212279842,0.063,172.21,172.19,42.74081898]
[1740212280037,0.063,172.21,172.2,18.28387012]
[1740212280646,0.063,172.21,172.2,11.67041034]
[1740212280946,0.063,172.21,172.2,111.8200592]
[1740212281925,0.063,172.21,172.2,117.6272592]
[1740212292454,0.063,172.21,172.2,111.8200592]
[1740212292766,0.063,172.21,172.2,100.14964886]
[1740212293456,0.063,172.21,172.2,81.5]
[1740212293755,0.063,172.21,172.2,98.97761034]
[1740212293956,0.063,172.21,172.2,81.5]
[1740212294968,0.063,172.21,172.16,98.97891034]
[1740212295174,11.73341034,172.21,172.16,81.5]
[1740212295337,11.67041034,172.2,172.16,81.5]
[1740212295538,17.47791034,172.2,172.14,81.5]
[1740212296242,11.67041034,172.19,172.12,129.03341034]
[1740212296674,11.67041034,172.17,172.12,81.563]
[1740212297049,17.44801034,172.18,172.12,81.563]
[1740212297239,5.7776,172.18,172.13,11.67041034]
[1740212298763,81.263,172.21,172.16,11.67041034]
[1740212298764,82.8148,172.21,172.16,11.67041034]
[1740212299061,88.6217,172.21,172.12,106.02244886]
[1740212299258,88.6217,172.21,172.15,11.67041034]
[1740212299464,88.6217,172.21,172.14,11.67041034]
[1740212300062,88.6217,172.21,172.14,17.47951034]
[1740212300450,100.29211034,172.21,172.14,11.67041034]
[1740212300643,100.29211034,172.21,172.14,17.47951034]
[1740212300979,1.6148,172.21,172.17,11.67041034]
[1740212301265,1.6148,172.21,172.15,18.64964886]
[1740212301266,0.063,172.21,172.2,11.67041034]
[1740212301568,0.063,172.21,172.2,93.17041034]
[1740212302446,0.063,172.21,172.2,98.97761034]
[1740212303140,0.063,172.21,172.2,81.5]
[1740212303765,11.73341034,172.21,172.15,117.3]
[1740212303944,11.73341034,172.21,172.15,81.5]
[1740212304478,5.8072,172.2,172.15,81.5]
[1740212306272,17.47761034,172.2,172.15,81.5]
[1740212306563,5.8072,172.2,172.15,81.5]
[1740212311569,5.8072,172.2,172.15,87.3087]
[1740212311771,18.31110832,172.21,172.15,87.3087]
[1740212311772,24.11800832,172.21,172.15,87.3087]
[1740212312074,0.063,172.21,172.16,18.24810832]
[1740212312389,0.063,172.21,172.17,36.89775718]
[1740212312550,0.063,172.21,172.18,24.05590832]
[1740212313558,0.063,172.21,172.18,105.55590832]
[1740212314669,0.063,172.21,172.18,99.74810832]
[1740212317875,0.063,172.21,172.18,105.55590832]
[1740212318075,0.063,172.21,172.18,87.3078]
[1740212319078,0.063,172.21,172.18,105.55590832]
[1740212320353,0.063,172.21,172.18,81.5]
[1740212321085,0.063,172.21,172.18,87.3078]
[1740212321583,0.063,172.21,172.18,81.5]
[1740212321584,18.31110832,172.21,172.18,81.5]
[1740212322786,24.11820832,172.21,172.18,81.5]
[1740212325465,18.24810832,172.19,172.14,100.14964886]
[1740212326785,5.8076,172.19,172.14,100.14964886]
[1740212327356,5.8076,172.19,172.14,81.5]
[1740212327580,5.8076,172.19,172.13,0.063]
[1740212327771,24.05570832,172.19,172.13,0.063]
[1740212327973,18.24810832,172.18,172.13,0.063]
[1740212328486,18.24810832,172.16,172.13,0.063]
[1740212328784,11.68521378,172.16,172.13,0.063]
[1740212329083,17.49371378,172.16,172.13,0.063]
[1740212331399,11.68521378,172.15,172.13,0.063]
[1740212332779,11.68521378,172.14,172.13,0.063]
[1740212333573,31.68521378,172.16,172.13,0.063]
[1740212333771,20.0,172.16,172.13,0.063]
[1740212333998,11.68521378,172.18,172.13,0.063]
[1740212334198,6.4945,172.19,172.13,11.74821378]
[1740212334501,6.4945,172.19,172.13,93.24821378]
[1740212335190,12.3021,172.19,172.13,93.24821378]
[1740212335704,23.98731378,172.19,172.13,81.563]
[1740212335992,12.3021,172.19,172.13,93.24821378]
[1740212336198,12.3021,172.19,172.13,87.3725]
[1740212336379,23.98731378,172.19,172.13,87.3725]
[1740212336572,23.98731378,172.19,172.13,81.563]
[1740212336773,11.68521378,172.17,172.13,81.563]
[1740212337707,17.49371378,172.17,172.13,81.563]
[1740212338195,5.8085,172.17,172.13,81.563]
[1740212339815,11.68521378,172.15,172.13,81.563]
[1740212339993,11.68521378,172.14,172.13,81.563]
[1740212340200,11.68521378,172.14,172.13,0.063]
[1740212340714,13.19081378,172.14,172.13,0.063]
[1740212340886,19.00001378,172.14,172.13,0.063]
[1740212342726,25.57747611,172.14,172.13,0.063]
[1740212347400,24.07087611,172.17,172.13,0.063]
[1740212347599,5.8082,172.17,172.13,0.063]
[1740212348502,18.26267611,172.16,172.13,0.063]
[1740212349020,18.26267611,172.15,172.13,0.063]
[1740212349951,18.26267611,172.14,172.13,0.063]
[1740212350735,24.07187611,172.14,172.13,0.063]
[1740212352943,5.8087,172.16,172.13,0.063]
[1740212354330,105.30087611,172.17,172.13,0.063]
[1740212354539,81.23,172.17,172.13,0.063]
[1740212358138,0.03,172.17,172.13,0.063]
[1740212359828,0.03,172.17,172.13,18.32567611]
[1740212362652,0.03,172.17,172.13,17.55183741]
[1740212363535,0.03,172.17,172.13,5.8722]
[1740212370380,0.03,172.17,172.13,0.063]
[1740212370545,11.70963741,172.17,172.13,0.063]
[1740212373487,17.51803741,172.17,172.13,0.063]
[1740212374678,5.8384,172.17,172.13,0.063]
[1740212382169,4.7606108,172.17,172.13,0.063]
[1740212382579,16.44024821,172.17,172.13,0.063]
[1740212386784,16.47024821,172.17,172.13,0.063]
[1740212388713,4.7906108,172.17,172.13,0.063]
[1740212389519,11.67963741,172.14,172.13,0.063]
[1740212389685,20.0,172.14,172.13,0.063]
[1740212389886,4.22,172.16,172.13,0.063]
[1740212390887,0.03,172.17,172.13,0.063]
[1740212391289,0.03,172.17,172.13,11.74263741]
[1740212392992,0.03,172.17,172.13,17.55213741]
[1740212393911,0.03,172.17,172.13,0.063]
[1740212396613,0.03,172.17,172.13,81.563]
[1740212396820,0.03,172.17,172.13,87.3725]
[1740212397725,0.03,172.17,172.14,18.64964886]
[1740212397927,0.03,172.17,172.15,11.67963741]
[1740212398122,0.03,172.17,172.15,93.17963741]
[1740212398796,0.03,172.17,172.16,24.45814886]
[1740212399521,0.03,172.17,172.16,30.32928627]
[1740212399726,0.03,172.17,172.16,18.64964886]
[1740212401327,0.03,172.17,172.15,117.3]
[1740212402624,0.03,172.17,172.15,81.5]
[1740212403212,0.03,172.17,172.16,30.32928627]
[1740212403415,0.03,172.17,172.16,36.13778627]
[1740212407616,0.03,172.17,172.16,153.43778627]
[1740212410133,0.03,172.17,172.16,153.50078627]
[1740212414832,0.03,172.17,172.16,141.82114886]
[1740212415308,0.03,172.17,172.16,153.50078627]
[1740212418551,0.03,172.19,172.18,38.64964886]
[1740212418715,0.03,172.19,172.18,168.50010168]
[1740212418915,0.03,172.19,172.18,167.62928627]
[1740212419637,0.03,172.19,172.18,135.94964886]
[1740212420218,0.03,172.19,172.18,117.3]
[1740212420864,0.03,172.19,172.18,153.43708627]
[1740212421343,0.03,172.19,172.18,117.3]
[1740212422835,0.03,172.19,172.18,141.75744886]
[1740212423039,0.03,172.19,172.18,153.43708627]
[1740212423451,0.03,172.19,172.18,117.63708627]
[1740212427455,0.03,172.19,172.18,153.43708627]
[1740212427619,0.03,172.19,172.18,154.43708627]
[1740212427951,0.03,172.19,172.18,163.16728627]
[1740212428636,0.03,172.19,172.18,161.16728627]
[1740212429248,0.03,172.19,172.18,162.16728627]
[1740212429650,0.03,172.19,172.18,161.16728627]
[1740212430453,0.03,172.19,172.18,162.16728627]
[1740212430622,0.03,172.19,172.18,163.16728627]
[1740212437134,0.0001,172.19,172.18,163.16728627]
[1740212437450,0.0001,172.19,172.18,169.63699232]
[1740212441328,0.02000001,172.21,172.2,20.0]
[1740212441535,0.02300001,172.22,172.21,18.64964886]
[1740212442639,0.02300001,172.22,172.21,24.45644886]
[1740212444155,0.02300001,172.22,172.21,141.75644886]
[1740212446156,0.02300001,172.22,172.21,153.43608627]
[1740212453065,1e-08,172.22,172.21,154.43608627]
[1740212453361,1e-08,172.22,172.21,161.90579232]
[1740212453754,0.03,172.25,172.24,31.67963741]
[1740212453963,0.03,172.25,172.24,167.62928627]
[1740212454472,0.03,172.25,172.24,173.43508627]
[1740212462269,0.03,172.25,172.24,167.62928627]
[1740212463387,0.03,172.25,172.24,117.3]
[1740212463880,0.03,172.25,172.24,128.97963741]
[1740212464562,0.03,172.25,172.24,153.43508627]
[1740212465953,0.03,172.25,172.24,141.75544886]
[1740212466154,0.03,172.25,172.24,147.62928627]
[1740212466367,0.03,172.25,172.24,128.97963741]
[1740212466985,0.03,172.25,172.24,134.78543741]
[1740212468191,0.03,172.25,172.24,128.97963741]
[1740212471106,0.03,172.25,172.24,117.3]
[1740212472081,0.03,172.25,172.24,81.5]
[1740212472507,5.8355,172.25,172.24,81.5]
[1740212472677,17.51513741,172.25,172.24,81.5]
[1740212472879,17.51513741,172.25,172.21,0.063]
[1740212473079,21.73513741,172.25,172.21,0.063]
[1740212473284,11.67963741,172.23,172.21,0.063]
[1740212473498,19.52963741,172.22,172.21,0.063]
[1740212473802,7.85,172.22,172.21,0.063]
[1740212474595,13.6565,172.22,172.21,0.063]
[1740212477177,25.33613741,172.22,172.21,0.063]
[1740212479106,13.6565,172.22,172.21,0.063]
[1740212479900,25.33613741,172.22,172.21,0.063]
[1740212481705,13.6565,172.22,172.21,0.063]
[1740212482983,7.85,172.22,172.21,0.063]
[1740212483183,5.8062,172.23,172.21,0.063]
[1740212483711,5.8058,172.24,172.21,0.063]
[1740212484081,17.48543741,172.24,172.21,0.063]
[1740212486498,11.67963741,172.22,172.21,0.063]
[1740212487408,13.30273741,172.22,172.21,0.063]
[1740212487942,1.6231,172.22,172.21,0.063]
[1740212488222,27.4296,172.22,172.21,0.063]
[1740212488428,39.10923741,172.22,172.21,0.063]
[1740212488632,27.4296,172.22,172.21,0.063]
[1740212490123,39.10923741,172.22,172.21,0.063]
[1740212491734,39.13923741,172.22,172.21,0.063]
[1740212491917,7.4596,172.22,172.21,0.063]
[1740212495126,19.13923741,172.22,172.21,0.063]
[1740212495806,33.65553741,172.22,172.18,81.5]
[1740212496026,17.48643741,172.21,172.17,0.063]
[1740212496222,5.8068,172.21,172.17,11.74263741]
[1740212496425,25.8068,172.21,172.17,11.74263741]
[1740212496634,5.8365,172.22,172.18,11.67963741]
[1740212497938,0.03,172.22,172.18,11.67963741]
[1740212498435,0.03,172.22,172.19,11.67963741]
[1740212498652,0.03,172.22,172.21,11.67963741]
[1740212499538,0.03,172.22,172.21,93.17963741]
[1740212501337,0.03,172.22,172.21,81.5]
[1740212503839,0.03,172.22,172.21,81.563]
[1740212505548,0.03,172.22,172.21,93.24263741]
[1740212505722,0.03,172.22,172.21,99.04943741]
[1740212507826,0.03,172.22,172.21,153.49908627]
[1740212508029,0.03,172.22,172.21,160.07068627]
[1740212508420,0.03,172.22,172.21,161.07068627]
[1740212511228,0.03,172.25,172.24,20.0]
[1740212511539,0.03,172.25,172.24,167.62928627]
[1740212512752,0.03,172.25,172.24,173.43508627]
[1740212520362,0.0001,172.25,172.24,173.43508627]
[1740212521856,0.0001,172.25,172.24,161.75544886]
[1740212522060,0.0001,172.25,172.24,173.43508627]
[1740212527767,0.0001,172.25,172.24,167.62928627]
[1740212528067,0.0001,172.25,172.24,128.97963741]
[1740212528256,0.0001,172.25,172.24,117.3]
[1740212528972,0.0001,172.25,172.24,128.97963741]
[1740212531671,0.0001,172.25,172.24,147.62928627]
[1740212532170,0.0001,172.25,172.24,153.43508627]
[1740212533952,0.0001,172.25,172.24,147.62928627]
[1740212535463,0.0001,172.25,172.24,128.97963741]
[1740212536380,0.0001,172.25,172.24,93.17963741]
[1740212538379,0.0001,172.25,172.24,81.5]
[1740212539069,0.0001,172.25,172.24,81.563]
[1740212539456,0.0001,172.25,172.24,0.063]
[1740212539798,31.67973741,172.25,172.24,0.063]
[1740212540001,11.67963741,172.23,172.21,0.063]
[1740212540364,11.67963741,172.22,172.21,0.063]
[1740212540581,17.68173741,172.22,172.21,0.063]
[1740212541056,6.0021,172.22,172.21,0.063]
[1740212543284,11.8086,172.22,172.21,0.063]
[1740212545694,11.67973741,172.25,172.21,0.063]
[1740212545897,0.0001,172.25,172.21,11.74263741]
[1740212546275,5.8056,172.25,172.21,11.74263741]
[1740212546480,5.8056,172.25,172.21,0.063]
[1740212546794,5.8056,172.25,172.21,81.563]
[1740212547294,17.48523741,172.25,172.21,81.563]
[1740212549583,5.8056,172.25,172.21,81.563]
[1740212551884,0.0001,172.25,172.21,93.24263741]
[1740212552200,0.0001,172.25,172.22,11.67963741]
[1740212552372,0.0001,172.25,172.21,93.24263741]
[1740212552983,0.0001,172.25,172.22,11.67963741]
[1740212553171,0.0001,172.25,172.23,11.67963741]
[1740212553366,0.0001,172.25,172.24,11.67963741]
[1740212553593,0.0001,172.25,172.24,93.17963741]
[1740212553798,0.0001,172.25,172.24,98.98543741]
[1740212553999,0.0001,172.25,172.24,153.43508627]
[1740212563614,0.0001,172.25,172.24,153.49808627]
[1740212565095,0.03,172.33,172.27,20.0]
[1740212565299,0.03,172.33,172.31,11.67963741]
[1740212565508,0.03,172.33,172.31,117.3]
[1740212566409,0.03,172.33,172.31,128.97963741]
[1740212567117,0.03,172.33,172.31,117.3]
[1740212568914,0.03,172.33,172.31,81.5]
[1740212571519,0.03,172.33,172.31,93.17963741]
[1740212574819,0.03,172.33,172.32,11.67963741]
[1740212578301,0.03,172.33,172.32,98.98273741]
[1740212580625,0.03,172.33,172.32,153.43238627]
[1740212580932,0.03,172.34,172.32,153.43238627]
[1740212581110,0.03,172.34,172.33,11.67963741]
[1740212582315,0.03,172.34,172.33,17.48243741]
[1740212583533,0.03,172.35,172.34,18.64964886]
[1740212583824,0.03,172.35,172.34,194.34783591]
[1740212584319,0.03,172.37,172.36,38.64964886]
[1740212584632,0.03,172.39,172.37,18.64964886]
[1740212584835,0.03,172.39,172.38,11.67963741]
[1740212585000,0.03,172.39,172.38,128.97963741]
[1740212586837,0.03,172.39,172.38,134.78073741]
[1740212587219,0.03,172.39,172.38,128.97963741]
[1740212589518,0.03,172.39,172.38,117.3]
[1740212589716,0.03,172.39,172.37,11.67963741]
[1740212590528,0.03,172.39,172.38,11.67963741]
[1740212592728,0.03,172.39,172.38,117.3]
[1740212597539,5.8308,172.39,172.38,117.3]
[1740212598237,17.51043741,172.39,172.33,117.3]
[1740212598542,20.3328,172.39,172.33,81.5]
[1740212598726,11.67963741,172.36,172.33,81.5]
[1740212599426,5.8021,172.35,172.33,81.563]
[1740212600813,11.67963741,172.34,172.33,0.063]
[1740212602716,17.48203741,172.34,172.33,0.063]
[1740212603112,20.0,172.31,172.3,81.5]
[1740212603318,31.67963741,172.31,172.26,117.3]
[1740212603628,11.67963741,172.3,172.26,81.5]
[1740212605043,5.8041,172.29,172.26,81.5]
[1740212608744,17.48373741,172.29,172.26,81.5]
[1740212609145,21.70373741,172.29,172.26,81.5]
[1740212610453,21.70373741,172.29,172.25,0.063]
[1740212610633,5.8048,172.27,172.25,0.063]
[1740212611343,5.8048,172.27,172.26,0.063]
[1740212613724,15.89963741,172.29,172.26,0.063]
[1740212614027,5.8045,172.28,172.26,0.063]
[1740212619962,17.48413741,172.28,172.26,0.063]
[1740212620144,11.67963741,172.27,172.26,0.063]
[1740212621167,17.48443741,172.27,172.26,0.063]
[1740212628044,18.48443741,172.27,172.25,0.063]
[1740212628247,12.67963741,172.26,172.25,0.0001]
[1740212628562,1.0,172.25,172.24,0.0001]
[1740212628754,20.48243741,172.25,172.24,0.0001]
[1740212629741,21.48243741,172.25,172.24,0.0001]
[1740212630886,27.28793741,172.25,172.24,0.0001]
[1740212633185,30.19311402,172.25,172.24,0.0001]
[1740212637089,20.0,172.22,172.17,0.063]
[1740212637287,11.67963741,172.18,172.17,0.063]
[1740212639602,17.48743741,172.18,172.17,0.063]
[1740212640774,5.8078,172.18,172.17,0.063]
[1740212641321,17.48743741,172.18,172.17,0.063]
[1740212642580,5.8078,172.18,172.17,0.063]
[1740212643194,17.48743741,172.18,172.17,0.063]
[1740212665411,11.67963741,172.17,172.13,81.563]
[1740212665615,31.67963741,172.16,172.13,81.563]
[1740212666704,31.67963741,172.16,172.13,0.063]
[1740212667222,31.67963741,172.14,172.13,0.063]
[1740212667801,37.48883741,172.14,172.13,0.063]
[1740212672515,5.8092,172.14,172.13,0.063]
[1740212672722,17.48683741,172.2,172.13,47.54263741]
[1740212672914,17.48683741,172.2,172.14,11.67963741]
[1740212673220,17.48683741,172.2,172.13,129.04263741]
[1740212673820,11.67963741,172.19,172.13,117.363]
[1740212674511,11.67963741,172.19,172.13,129.04263741]
[1740212674715,17.48683741,172.2,172.13,129.04263741]
[1740212675423,11.67963741,172.19,172.13,129.04263741]
[1740212675816,5.8078,172.18,172.13,129.04263741]
[1740212676720,5.8078,172.18,172.13,117.363]
[1740212677807,17.48743741,172.18,172.13,117.363]
[1740212678510,5.8078,172.18,172.13,117.363]
[1740212678914,11.67963741,172.16,172.13,117.363]
[1740212679111,11.67963741,172.14,172.13,81.563]
[1740212680414,17.48883741,172.14,172.13,81.563]
[1740212680732,5.8092,172.14,172.13,81.563]
[1740212681816,0.063,172.16,172.13,81.563]
[1740212683532,5.8716,172.16,172.13,81.563]
[1740212684041,11.67963741,172.15,172.13,81.563]
[1740212684214,0.063,172.16,172.13,81.563]
[1740212684215,11.67963741,172.14,172.13,81.563]
[1740212684939,11.67963741,172.14,172.13,0.063]
[1740212685311,17.48883741,172.14,172.13,0.063]
[1740212686233,5.8089,172.15,172.13,0.063]
[1740212686438,0.063,172.16,172.13,0.063]
[1740212689044,0.063,172.16,172.13,11.74263741]
[1740212689641,0.063,172.16,172.13,93.24263741]
[1740212690446,0.063,172.16,172.13,81.563]
[1740212691044,0.063,172.16,172.14,5.8092]
[1740212691223,0.063,172.16,172.14,7.4676]
[1740212691426,0.063,172.16,172.14,1.6584]
[1740212691843,0.063,172.16,172.15,18.11943741]
[1740212692020,0.063,172.16,172.15,6.4398]